bitfinex-derivatives/quotes_SOLF0:USTF0_20251006
["timestamp","ask_amount","ask_price","bid_price","bid_amount"]
[1759714522085,109.56,231.09,230.98,8.5735439]
[1759714522390,1.2435439,231.07,230.93,12.11793018]
[1759714522578,109.56,231.09,230.93,12.11793018]
[1759714522579,109.56,231.09,230.93,7.33]
[1759714522884,60.5509,231.15,230.93,7.33]
[1759714522885,1.2435439,231.05,230.93,7.33]
[1759714523089,109.62,231.04,230.93,7.33]
[1759714523894,109.62,231.04,230.88,7.33]
[1759714524681,109.62,231.04,230.88,11.2268]
[1759714524987,2.99764644,231.03,230.88,7.33]
[1759714527290,2.99764644,230.98,230.83,11.2276]
[1759714527495,16.06,230.97,230.83,7.33]
[1759714527788,16.06,230.96,230.83,67.9612]
[1759714528490,16.06,230.96,230.83,11.2277]
[1759714529284,2.99764644,230.95,230.83,7.33]
[1759714529486,2.99764644,230.95,230.79,3.8983]
[1759714529686,2.99764644,230.95,230.79,64.5411]
[1759714530591,2.99764644,230.95,230.82,3.8979]
[1759714530998,35.43048608,231.05,230.83,7.33]
[1759714531290,2.99764644,231.02,230.88,7.33]
[1759714532994,2.99764644,230.97,230.83,7.33]
[1759714533189,109.86,230.96,230.83,7.33]
[1759714535386,109.82,230.95,230.83,7.33]
[1759714535786,109.82,230.94,230.83,7.33]
[1759714536788,109.82,230.94,230.82,60.6338]
[1759714536789,2.99764644,230.97,230.78,60.6453]
[1759714536993,43.44,230.96,230.79,7.54]
[1759714537490,2.99764644,230.97,230.79,7.54]
[1759714537696,84.38,230.96,230.79,7.54]
[1759714537990,2.99764644,230.91,230.79,7.54]
[1759714538596,38.52,230.9,230.79,7.54]
[1759714539192,2.99764644,230.91,230.79,7.54]
[1759714539497,29.08,230.9,230.79,7.54]
[1759714539690,37.74,230.89,230.79,7.54]
[1759714539889,39.44,230.88,230.79,7.54]
[1759714540599,2.99764644,230.93,230.79,68.1823]
[1759714540899,46.24,230.92,230.79,68.1823]
[1759714541401,46.24,230.92,230.79,11.4384]
[1759714541994,80.12,230.91,230.81,3.8979]
[1759714542199,80.12,230.91,230.79,7.54]
[1759714543102,98.34,230.9,230.79,7.54]
[1759714543497,98.34,230.9,230.8,3.8983]
[1759714544398,98.34,230.9,230.79,7.54]
[1759714547295,98.34,230.9,230.79,11.4384]
[1759714549508,98.34,230.9,230.79,7.54]
[1759714551210,3.8955,230.97,230.82,7.53]
[1759714551211,2.99764644,230.97,230.82,7.53]
[1759714551403,109.48,230.96,230.82,7.53]
[1759714552316,122.73021258,230.96,230.82,7.53]
[1759714552610,122.73021258,230.96,230.83,3.8977]
[1759714553008,122.73021258,230.96,230.82,7.53]
[1759714553407,2.99764644,230.97,230.83,60.6319]
[1759714553608,2.99764644,231.02,230.86,7.53]
[1759714553809,49.16,230.96,230.86,7.53]
[1759714554013,49.16,230.96,230.86,11.4271]
[1759714556117,109.36,230.95,230.88,3.8969]
[1759714556318,2.99764644,231.02,230.88,7.53]
[1759714556818,109.36,231.01,230.88,7.53]
[1759714557415,109.36,231.01,230.89,3.8966]
[1759714557620,109.36,231.01,230.88,7.53]
[1759714558211,2.99764644,231.02,230.88,60.618]
[1759714558415,109.3,231.01,230.9,7.53]
[1759714558819,109.3,231.01,230.92,3.8962]
[1759714559523,109.3,231.0,230.92,3.8962]
[1759714560129,109.3,231.0,230.81,69.4520757]
[1759714560425,109.3,231.0,230.82,7.53]
[1759714560615,109.3,231.0,230.84,3.8975]
[1759714560819,109.3,231.0,230.82,7.53]
[1759714561019,109.32,230.99,230.86,7.53]
[1759714561329,109.32,230.99,230.87,3.897]
[1759714561628,109.32,230.99,230.86,7.53]
[1759714561829,109.32,230.99,230.86,11.4271]
[1759714562029,109.32,230.99,230.86,7.53]
[1759714562229,109.32,230.99,230.88,7.53]
[1759714562625,109.32,230.99,230.89,3.8966]
[1759714563427,109.32,230.99,230.91,3.8963]
[1759714563726,109.32,230.99,230.88,7.53]
[1759714564229,16.21991011,231.06,230.88,7.53]
[1759714564425,109.26,231.05,230.88,7.53]
[1759714565131,20.11381011,231.06,230.88,7.53]
[1759714565332,109.26,231.04,230.88,7.53]
[1759714565726,109.26,231.04,230.91,3.8964]
[1759714566231,109.26,231.04,230.89,3.8967]
[1759714566428,113.1543,231.04,230.89,3.8967]
[1759714566831,109.26,231.04,230.89,3.8967]
[1759714567326,114.09016453,231.04,230.89,3.8967]
[1759714568929,21.05007464,231.06,230.91,7.53]
[1759714569234,109.16,231.05,230.91,7.53]
[1759714569921,113.99016453,231.05,230.91,7.53]
[1759714570123,113.99016453,231.05,230.91,11.4264]
[1759714571133,1.24794966,230.99,230.91,11.4264]
[1759714571433,109.14,230.98,230.91,11.4264]
[1759714572632,1.24794966,230.96,230.88,3.8967]
[1759714573830,4.83016453,231.04,230.87,60.6214]
[1759714574030,58.84,231.03,230.92,7.53]
[1759714574230,1.24794966,230.98,230.87,7.53]
[1759714574433,1.24794966,230.95,230.87,7.53]
[1759714574628,51.5,230.98,230.89,7.53]
[1759714574830,94.06,231.0,230.92,7.53]
[1759714576033,94.06,231.0,230.92,11.4261]
[1759714577937,94.06,231.0,230.92,7.53]
[1759714578137,94.06,231.0,230.85,7.71]
[1759714578334,1.94965554,231.02,230.86,60.6244]
[1759714578538,58.46,231.01,230.87,7.71]
[1759714578738,58.46,231.01,230.91,3.8963]
[1759714579439,58.46,231.01,230.89,3.8967]
[1759714580232,1.94965554,230.98,230.87,11.6071]
[1759714580433,62.3547,231.01,230.82,7.71]
[1759714580434,1.94965554,230.94,230.82,7.71]
[1759714580630,109.14,230.93,230.82,7.71]
[1759714581642,109.14,230.93,230.83,3.8977]
[1759714582738,109.14,230.93,230.84,3.8974]
[1759714583635,109.14,230.93,230.86,7.71]
[1759714584343,109.14,230.93,230.87,3.8971]
[1759714584538,109.14,230.93,230.86,7.71]
[1759714584744,109.14,230.93,230.81,69.98732185]
[1759714584942,109.14,230.93,230.85,3.8973]
[1759714585642,1.94965554,230.98,230.86,3.8971]
[1759714585847,109.14,230.93,230.86,3.8971]
[1759714586244,1.94965554,230.98,230.86,3.8971]
[1759714586444,70.3,230.97,230.86,3.8971]
[1759714588143,70.3,230.97,230.88,3.8969]
[1759714590352,1.94965554,230.99,230.88,3.8969]
[1759714590548,315.22,231.0,230.88,68.3271]
[1759714590750,109.14,230.99,230.88,68.3271]
[1759714591249,109.14,230.98,230.89,7.71]
[1759714591658,109.14,230.98,230.9,60.613]
[1759714591849,109.14,230.98,230.89,7.71]
[1759714592251,109.14,230.98,230.93,3.8959]
[1759714592453,109.14,230.98,230.93,11.6059]
[1759714592654,109.14,230.98,230.91,7.71]
[1759714592955,109.14,230.98,230.95,3.8957]
[1759714593855,109.14,230.98,230.94,7.89]
[1759714595356,109.12,230.97,230.94,7.89]
[1759714595558,315.22,231.0,230.94,11.7858]
[1759714595857,109.12,230.98,230.91,68.5013]
[1759714596053,109.12,230.98,230.91,7.89]
[1759714596253,109.12,230.98,230.94,11.7857]
[1759714596453,109.12,230.98,230.92,7.89]
[1759714597458,109.12,230.98,230.96,3.8954]
[1759714597658,109.12,230.98,230.96,11.7854]
[1759714598555,109.12,230.98,230.96,3.8954]
[1759714598860,109.12,231.02,230.95,7.89]
[1759714599256,109.12,231.02,230.98,3.8951]
[1759714600766,109.12,231.02,231.0,3.8949]
[1759714601060,109.12,231.02,230.95,7.89]
[1759714601856,109.12,231.02,230.97,3.8954]
[1759714602062,109.12,231.02,230.95,7.89]
[1759714603261,109.12,231.02,230.91,13.00765427]
[1759714603559,109.12,231.02,230.91,7.89]
[1759714603761,111.06965554,231.02,230.92,3.8962]
[1759714604060,1.94965554,230.98,230.86,3.53349259]
[1759714604265,59.1,230.97,230.84,3.53349259]
[1759714604458,59.1,230.97,230.83,7.89]
[1759714604962,59.1,230.97,230.83,11.42349259]
[1759714605659,59.1,230.97,230.87,3.8969]
[1759714605864,59.1,230.97,230.83,85.22255427]
[1759714606163,61.24,230.96,230.86,68.5142]
[1759714606464,82.16,230.95,230.88,60.6189]
[1759714606861,82.16,230.95,230.92,3.8961]
[1759714607255,82.16,230.95,230.9,60.6137]
[1759714607459,82.16,230.95,230.91,7.89]
[1759714608260,109.08,230.97,230.91,7.89]
[1759714608664,109.08,230.97,230.93,3.896]
[1759714608861,109.08,230.97,230.91,7.89]
[1759714609160,4.83016453,231.06,231.01,3.8947]
[1759714609161,1.94965554,231.06,231.01,3.8947]
[1759714609463,109.08,231.05,230.95,60.6008]
[1759714610256,109.08,231.05,230.98,3.8952]
[1759714610457,109.08,231.04,230.95,60.5996]
[1759714611354,1.94965554,231.06,230.95,60.5996]
[1759714611559,109.08,231.03,230.99,3.895]
[1759714612370,109.08,231.03,230.94,7.64]
[1759714612966,109.08,231.03,230.97,60.5955]
[1759714613266,109.08,231.03,230.95,60.6003]
[1759714613966,109.08,231.03,230.99,3.8949]
[1759714614169,109.08,231.03,230.89,3.53349259]
[1759714614371,1.94965554,231.02,230.88,7.64]
[1759714614861,8.98609857,231.09,230.92,60.6087]
[1759714615070,1.94965554,231.06,230.92,60.6087]
[1759714615465,124.0,231.05,230.92,60.6087]
[1759714616671,124.0,231.05,230.96,3.8955]
[1759714618267,124.0,231.05,230.92,3.8961]
[1759714618565,124.0,231.05,230.92,60.6085]
[1759714618967,124.0,231.05,230.96,3.8955]
[1759714619771,124.0,231.05,230.93,3.8959]
[1759714619971,124.0,231.05,230.91,7.64]
[1759714620964,1.94965554,231.02,230.93,3.8961]
[1759714621165,1.94965554,230.98,230.87,7.64]
[1759714622060,1.94965554,230.98,230.88,3.8969]
[1759714622366,1.94965554,230.98,230.87,7.64]
[1759714622965,1.94965554,230.94,230.82,7.64]
[1759714623160,66.26,230.93,230.82,7.64]
[1759714623561,66.26,230.93,230.82,20.81900635]
[1759714624172,1.94965554,230.9,230.81,5.81752926]
[1759714624777,1.94965554,230.94,230.82,7.64]
[1759714624971,96.16,230.93,230.83,60.6323]
[1759714625269,96.16,230.93,230.88,3.8968]
[1759714625473,319.97016453,231.03,230.89,7.64]
[1759714625474,109.04,230.99,230.89,7.64]
[1759714625670,109.04,230.99,230.92,7.64]
[1759714625869,109.04,230.99,230.94,3.8959]
[1759714626568,109.04,230.99,230.96,3.8954]
[1759714626770,315.14,231.03,230.96,11.5354]
[1759714627076,109.06,231.02,230.96,11.5354]
[1759714627765,109.06,231.01,230.96,11.5354]
[1759714627971,109.06,231.01,230.97,7.64]
[1759714628174,315.14,231.03,230.97,7.64]
[1759714628377,109.06,231.02,230.97,7.64]
[1759714628675,109.06,231.02,230.93,7.64]
[1759714629066,109.06,231.02,230.94,3.8959]
[1759714629574,109.06,231.02,230.93,7.64]
[1759714630073,109.06,231.02,230.98,3.8952]
[1759714630679,9.84201004,231.12,231.0,7.64]
[1759714630881,109.04,231.11,231.0,7.64]
[1759714631680,109.04,231.11,231.01,60.5846]
[1759714631884,109.04,231.11,231.0,7.64]
[1759714633482,319.99016453,231.16,231.0,7.64]
[1759714633682,109.04,231.15,231.0,7.64]
[1759714633881,5.01184551,231.11,230.95,11.5356]
[1759714634178,124.0,231.1,230.95,7.64]
[1759714634386,57.7,231.09,230.95,7.64]
[1759714634976,124.0,231.08,230.95,7.64]
[1759714636685,124.0,231.08,230.99,3.895]
[1759714638678,124.0,231.08,230.95,7.64]
[1759714638679,124.0,231.08,231.01,3.8946]
[1759714638875,57.7,231.09,231.01,3.8946]
[1759714639082,4.83016453,231.14,231.05,3.8939]
[1759714639281,233.02,231.13,231.0,7.29]
[1759714639792,237.85016453,231.13,231.0,7.29]
[1759714640487,233.02,231.13,231.01,3.8947]
[1759714640688,233.02,231.13,231.0,7.29]
[1759714640689,109.02,231.13,231.0,7.29]
[1759714640888,315.16,231.16,231.03,60.5787]
[1759714641095,109.0,231.15,231.03,60.5787]
[1759714641292,109.0,231.15,231.05,7.29]
[1759714641489,109.0,231.15,231.07,60.568]
[1759714641680,109.0,231.15,231.07,73.58221928]
[1759714641982,109.0,231.15,231.12,3.8928]
[1759714642188,109.0,231.15,231.08,7.29]
[1759714642383,4.83016453,231.3,231.09,60.5636]
[1759714642587,2.99860287,231.27,231.1,7.29]
[1759714642983,2.99860287,231.22,231.1,7.29]
[1759714643190,2.99860287,231.22,231.07,13.11876189]
[1759714643191,109.0,231.21,231.07,13.11876189]
[1759714643387,109.0,231.21,231.06,7.29]
[1759714644093,109.0,231.21,231.08,3.8934]
[1759714645291,109.0,231.21,231.08,60.5657]
[1759714645482,109.0,231.21,231.09,7.29]
[1759714646088,109.0,231.21,231.1,60.561]
[1759714646286,124.0,231.26,231.1,60.561]
[1759714646287,124.0,231.26,231.12,60.5562]
[1759714646494,108.98,231.25,231.15,7.29]
[1759714646790,108.98,231.25,231.18,60.5405]
[1759714647192,108.98,231.25,231.22,3.8911]
[1759714647385,108.98,231.25,231.22,11.1811]
[1759714648788,108.98,231.25,231.15,7.29]
[1759714649887,108.98,231.25,231.19,3.8916]
[1759714650091,108.98,231.25,231.2,60.5351]
[1759714650392,108.98,231.25,231.21,7.29]
[1759714650592,108.98,231.25,231.23,7.29]
[1759714650798,108.94,231.3,231.23,7.29]
[1759714651388,124.0,231.37,231.23,7.29]
[1759714651389,124.0,231.37,231.29,60.5111]
[1759714651592,18.99875933,231.42,231.37,60.4909]
[1759714651593,12.48792908,231.42,231.37,60.4909]
[1759714651794,12.48792908,231.42,231.37,7.29]
[1759714653499,12.48792908,231.42,231.37,11.1786]
[1759714654791,12.48792908,231.42,231.37,7.29]
[1759714654997,12.48792908,231.42,231.34,3.8891]
[1759714655900,12.48792908,231.42,231.31,3.8896]
[1759714656102,12.48792908,231.42,231.3,7.84]
[1759714657101,12.48792908,231.42,231.27,68.3557]
[1759714657297,12.48792908,231.42,231.27,11.7302]
[1759714657497,12.48792908,231.42,231.27,3.8902]
[1759714657699,2.99860287,231.37,231.24,3.8908]
[1759714658002,109.26,231.36,231.24,3.8908]
[1759714658197,109.26,231.36,231.22,7.84]
[1759714658402,109.26,231.36,231.21,3.8913]
[1759714658595,109.26,231.36,231.2,12.95113234]
[1759714658800,109.26,231.36,231.22,7.84]
[1759714659397,109.26,231.36,231.23,3.891]
[1759714661101,2.99860287,231.32,231.16,7.84]
[1759714661606,2.99860287,231.32,231.19,3.8916]
[1759714661807,2.99860287,231.35,231.17,60.5431]
[1759714662000,2.99860287,231.35,231.17,73.64378347]
[1759714662402,2.99860287,231.35,231.21,3.8913]
[1759714662600,2.99860287,231.35,231.2,60.5354]
[1759714662997,2.99860287,231.35,231.24,3.8908]
[1759714663202,53.92,231.35,231.24,60.5246]
[1759714663606,53.92,231.35,231.23,7.84]
[1759714663803,56.91860287,231.35,231.23,7.84]
[1759714664706,56.91860287,231.35,231.24,3.8908]
[1759714664903,56.91860287,231.35,231.23,7.84]
[1759714665905,56.91860287,231.35,231.23,3.8909]
[1759714666103,56.91860287,231.35,231.18,7.84]
[1759714667905,72.96742908,231.42,231.35,60.4951]
[1759714667906,12.48792908,231.42,231.35,60.4951]
[1759714668210,12.48792908,231.42,231.36,7.31]
[1759714668500,12.48792908,231.42,231.3,60.5081]
[1759714668713,12.48792908,231.42,231.31,7.31]
[1759714668898,12.48792908,231.42,231.33,3.8893]
[1759714671109,12.48792908,231.42,231.33,60.5011]
[1759714671506,12.48792908,231.42,231.37,11.1986]
[1759714672107,12.48792908,231.42,231.38,7.31]
[1759714672302,12.48792908,231.42,231.39,3.8883]
[1759714672507,12.48792908,231.42,231.38,7.31]
[1759714674310,12.48792908,231.42,231.38,11.1984]
[1759714674515,12.48792908,231.42,231.39,7.31]
[1759714676510,12.48792908,231.42,231.38,3.8884]
[1759714676706,12.48792908,231.42,231.39,7.31]
[1759714677805,12.48792908,231.42,231.38,3.8884]
[1759714678006,12.48792908,231.42,231.38,11.1984]
[1759714678210,87.48792908,231.42,231.38,11.1984]
[1759714678713,87.48792908,231.42,231.41,7.31]
[1759714678911,32.21731678,231.42,231.41,7.75]
[1759714679111,1.678e-05,231.42,231.41,7.75]
[1759714679309,1.678e-05,231.42,231.41,7.31]
[1759714679504,1.678e-05,231.42,231.41,7.75]
[1759714679707,1.678e-05,231.42,231.4,11.1982]
[1759714680117,1.678e-05,231.42,231.36,11.1987]
[1759714680315,1.678e-05,231.42,231.36,71.6913]
[1759714680510,1.678e-05,231.42,231.37,7.31]
[1759714680912,1.678e-05,231.42,231.38,60.4873]
[1759714681617,1.678e-05,231.42,231.36,60.4926]
[1759714681814,1.678e-05,231.42,231.34,67.8073]
[1759714682119,7.52,231.58,231.47,60.4638]
[1759714682314,7.52,231.58,231.46,67.7761]
[1759714682515,7.52,231.58,231.46,7.31]
[1759714683222,7.52,231.58,231.47,3.8869]
[1759714684019,7.52,231.58,231.5,3.8864]
[1759714684913,124.0,231.62,231.52,3.886]
[1759714685218,7.52,231.63,231.52,60.4515]
[1759714686119,314.58,231.73,231.5,80.62472172]
[1759714686120,314.58,231.73,231.53,7.31]
[1759714686320,7.52,231.71,231.54,60.4463]
[1759714686621,7.52,231.71,231.57,7.31]
[1759714686810,7.52,231.71,231.58,3.8851]
[1759714687418,7.52,231.71,231.6,3.8847]
[1759714687710,7.52,231.71,231.57,7.31]
[1759714687920,10.51860287,231.71,231.57,7.31]
[1759714688117,2.99860287,231.71,231.57,11.1952]
[1759714688319,7.52,231.7,231.57,11.1952]
[1759714688519,7.52,231.7,231.57,7.31]
[1759714689014,7.52,231.7,231.58,60.4342]
[1759714689223,7.52,231.7,231.57,7.31]
[1759714689526,7.52,231.7,231.59,3.8849]
[1759714690411,7.52,231.7,231.57,7.31]
[1759714691823,438.58,231.73,231.57,7.31]
[1759714692117,4.83016453,231.84,231.68,3.8834]
[1759714692118,7.52,231.79,231.68,3.8834]
[1759714692318,110.3,231.78,231.64,7.31]
[1759714692824,110.3,231.78,231.65,3.8839]
[1759714693222,2.99860287,231.9,231.65,3.8839]
[1759714693223,7.52,231.82,231.69,7.31]
[1759714693419,7.52,231.82,231.71,3.8828]
[1759714693615,7.52,231.82,231.69,7.31]
[1759714694219,110.6,231.81,231.7,3.8831]
[1759714694523,110.6,231.81,231.69,7.31]
[1759714695723,110.52,231.8,231.69,7.31]
[1759714695921,7.52,231.82,231.69,7.31]
[1759714696122,110.48,231.81,231.69,11.1932]
[1759714696316,7.52,231.8,231.66,5.66674662]
[1759714696521,110.48,231.81,231.66,5.66674662]
[1759714696522,7.52,231.78,231.66,5.66674662]
[1759714698528,110.4,231.77,231.66,5.66674662]
[1759714699026,7.56,231.76,231.66,5.66674662]
[1759714699726,7.56,231.76,231.63,7.31]
[1759714700524,30.3,231.75,231.63,7.31]
[1759714700831,7.56,231.74,231.59,7.84]
[1759714701726,7.56,231.74,231.53,94.79363621]
[1759714701931,7.56,231.74,231.54,7.84]
[1759714702123,7.56,231.74,231.56,3.8854]
[1759714702726,7.56,231.72,231.58,60.435]
[1759714702926,314.24,231.76,231.62,60.4253]
[1759714703229,110.4,231.75,231.63,7.84]
[1759714703433,7.56,231.74,231.63,7.84]
[1759714704529,7.56,231.74,231.6,3.8847]
[1759714704729,7.56,231.74,231.58,7.84]
[1759714705130,7.56,231.72,231.58,7.84]
[1759714705537,7.56,231.72,231.59,3.8849]
[1759714705840,110.44,231.71,231.59,3.8849]
[1759714706135,110.42,231.7,231.58,7.84]
[1759714706728,110.42,231.7,231.6,3.8848]
[1759714707234,110.42,231.7,231.58,7.84]
[1759714708635,110.42,231.7,231.59,3.8849]
[1759714709030,7.56,231.69,231.58,7.84]
[1759714710238,110.24,231.68,231.58,3.8851]
[1759714710429,110.24,231.68,231.57,7.84]
[1759714710625,110.28,231.67,231.57,7.84]
[1759714710830,110.28,231.67,231.6,3.8848]
[1759714711235,110.24,231.66,231.6,3.8848]
[1759714711534,7.56,231.69,231.6,3.8848]
[1759714711733,110.24,231.66,231.6,3.8848]
[1759714711934,110.24,231.66,231.57,11.7252]
[1759714712134,7.56,231.65,231.57,7.84]
[1759714713336,7.56,231.65,231.45,68.2423]
[1759714713337,7.56,231.65,231.52,7.99]
[1759714713835,7.56,231.65,231.53,3.8859]
[1759714714331,110.14,231.64,231.52,7.99]
[1759714715336,110.14,231.64,231.55,3.8856]
[1759714716436,7.47,231.63,231.52,7.99]
[1759714716638,7.47,231.63,231.5,12.85792172]
[1759714716940,7.47,231.63,231.47,7.99]
[1759714717235,7.47,231.63,231.51,3.8863]
[1759714718829,7.47,231.63,231.48,3.8867]
[1759714720731,7.47,231.63,231.5,3.8865]
[1759714721438,7.47,231.63,231.47,20.85347483]
[1759714721639,3.8858,231.54,231.35,3.53349259]
[1759714721947,341.21,231.53,231.36,7.99]
[1759714722243,110.7,231.52,231.36,7.99]
[1759714722437,234.7,231.52,231.36,7.99]
[1759714722838,7.47,231.51,231.36,7.99]
[1759714723044,7.47,231.51,231.36,11.8788]
[1759714723439,7.47,231.51,231.36,7.99]
[1759714723841,110.66,231.5,231.36,7.99]
[1759714724241,7.47,231.51,231.37,60.4909]
[1759714724436,110.6,231.5,231.37,60.4909]
[1759714724641,7.47,231.51,231.37,60.4909]
[1759714724944,7.47,231.51,231.41,3.8879]
[1759714725143,110.58,231.5,231.41,3.8879]
[1759714725849,110.58,231.5,231.37,3.8886]
[1759714726048,110.52,231.49,231.37,3.8886]
[1759714726348,110.52,231.48,231.37,3.8886]
[1759714726944,110.52,231.48,231.39,3.8883]
[1759714727343,110.52,231.48,231.36,7.99]
[1759714727747,110.52,231.48,231.4,3.8881]
[1759714729353,7.47,231.51,231.42,3.8877]
[1759714729544,110.36,231.5,231.43,7.73]
[1759714729847,3.8853,231.58,231.43,7.73]
[1759714729848,124.0,231.58,231.43,7.73]
[1759714730058,118.16,231.57,231.43,7.73]
[1759714730541,7.8,231.57,231.43,7.73]
[1759714730748,110.38,231.56,231.43,7.73]
[1759714730944,110.38,231.55,231.43,7.73]
[1759714731245,7.8,231.54,231.43,7.73]
[1759714732346,7.8,231.54,231.45,3.8873]
[1759714732547,110.34,231.53,231.45,3.8873]
[1759714732943,110.28,231.52,231.47,11.6169]
[1759714733351,7.8,231.54,231.47,11.6169]
[1759714733557,110.24,231.53,231.47,11.6169]
[1759714733847,110.24,231.52,231.47,11.6169]
[1759714734051,7.8,231.51,231.44,3.8874]
[1759714735354,110.14,231.5,231.46,3.887]
[1759714735550,7.8,231.51,231.46,3.887]
[1759714735853,69.14,231.5,231.46,11.617]
[1759714736849,69.14,231.5,231.43,3.8875]
[1759714737046,69.14,231.5,231.42,7.73]
[1759714738155,69.14,231.5,231.45,11.6173]
[1759714739157,7.8,231.49,231.45,3.8873]
[1759714739350,76.94,231.5,231.42,3.8876]
[1759714740157,7.8,231.49,231.36,7.73]
[1759714740454,7.8,231.49,231.32,7.73]
[1759714740955,3.8872,231.46,231.31,3.8896]
[1759714741158,60.4596,231.49,231.28,20.53143219]
[1759714741345,4.98242247,231.46,231.28,7.73]
[1759714741549,7.8,231.45,231.28,7.73]
[1759714741749,4.98242247,231.46,231.28,7.73]
[1759714741750,7.8,231.43,231.28,7.73]
[1759714742353,7.8,231.43,231.27,60.5162]
[1759714742354,7.8,231.43,231.33,60.5009]
[1759714742554,8.28,231.42,231.33,60.5009]
[1759714742955,7.8,231.43,231.39,3.8883]
[1759714743155,15.86,231.41,231.32,7.73]
[1759714743351,15.86,231.41,231.32,11.6194]
[1759714744961,37.24,231.4,231.32,7.73]
[1759714745759,7.8,231.5,231.36,7.73]
[1759714746062,7.8,231.48,231.32,7.73]
[1759714747855,7.8,231.48,231.32,7.6957685]
[1759714748251,3.8868,231.48,231.32,11.5851685]
[1759714748757,7.8,231.48,231.25,60.5204]
[1759714748965,170.5806,231.49,231.29,3.8899]
[1759714748966,7.8,231.46,231.29,3.8899]
[1759714749159,7.8,231.46,231.28,60.5139]
[1759714749355,7.8,231.49,231.33,3.8893]
[1759714749555,117.86,231.48,231.33,3.8893]
[1759714749756,7.8,231.48,231.33,3.8893]
[1759714749959,7.8,231.46,231.33,3.8893]
[1759714750552,7.8,231.46,231.35,3.8888]
[1759714750861,110.02,231.45,231.35,3.8888]
[1759714751258,100.0,231.5,231.39,60.4852]
[1759714751464,82.33198818,231.5,231.47,7.73]
[1759714751764,82.33198818,231.5,231.48,3.8866]
[1759714751765,50.97978818,231.5,231.48,3.8866]
[1759714752059,50.97978818,231.5,231.49,7.73]
[1759714752858,50.97978818,231.5,231.41,7.73]
[1759714753054,50.97978818,231.5,231.37,7.73]
[1759714754261,50.97978818,231.5,231.37,7.69]
[1759714754453,50.97978818,231.5,231.39,3.8882]
[1759714754854,50.97978818,231.5,231.39,60.4852]
[1759714756561,50.97978818,231.5,231.4,3.888]
[1759714756763,7.8,231.49,231.32,7.73]
[1759714756956,3.8868,231.48,231.32,11.6194]
[1759714757159,7.8,231.47,231.32,11.6194]
[1759714757464,3.8868,231.48,231.32,11.6194]
[1759714757761,7.52,231.47,231.32,11.6194]
[1759714757968,7.52,231.47,231.29,3.8899]
[1759714758361,7.52,231.45,231.27,7.92]
[1759714759164,2.99025927,231.43,231.27,7.92]
[1759714759365,7.52,231.41,231.27,7.92]